[Event "Vojvodina Open 2024-A 2024"]
[Site "Novi Sad"]
[Date "2024.06.28"]
[Round "6.13"]
[White "Pranav Pradeep Nair"]
[Black "Ilincic, Aleksa"]
[Result "1-0"]
[ECO "B13"]
[WhiteElo "1818"]
[BlackElo "2232"]
[Annotator "RC"]
[PlyCount "75"]
[EventDate "2024.06.03"]
[EventType "swiss"]
[EventCountry "SRB"]
[SourceTitle "playchess.com"]
[Source "ChessBase"]
[SourceQuality "1"]
[TimeControl "40/5400+30:900+30"]

1. e4 {[%emt 0:00:03]} c6 {[%emt 0:03:17]} 2. d4 {[%emt 0:00:07]} d5 {[%emt 0:00:16]} 3. exd5 {[%emt 0:00:08]} cxd5 {[%emt 0:00:12]} 4. Bd3 {[%emt 0:00:10]} Nf6 {[%emt 0:01:04]} 5. c3 {[%emt 0:00:05]} Bg4 {[%emt 0:00:51]} 6. Qb3 {[%emt 0:00:09]} Qc7 {[%emt 0:00:24]} 7. h3 {[%emt 0:00:07]} Bh5 {[%emt 0:02:41]} 8. g4 {[%emt 0:01:36]} Bg6 {[%emt 0:00:05]} 9. Bxg6 {[%emt 0:00:06]} hxg6 {[%emt 0:00:01]} 10. g5 {[%emt 0:00:08]} Nfd7 {[%emt 0:00:01]} 11. Qxd5 {[%emt 0:00:13]} Nc6 {[%emt 0:01:05]} 12. Ne2 {[%emt 0:03:05]} e5 {[%emt 0:01:10]} 13. Be3 {[%emt 0:03:49]} Rh4 {[%emt 0:15:39]} 14. Nd2 {[%emt 0:10:40]} Nb6 {[%emt 0:02:34]} 15. Qb5 {[%emt 0:14:37]} O-O-O {[%emt 0:05:17]} 16. Nf3 {[%emt 0:02:47]} exd4 {[%emt 0:01:05]} 17. Nexd4 {[%emt 0:00:16]} Nxd4 {[%emt 0:00:53]} 18. Nxd4 {[%emt 0:11:48]} a6 {[%emt 0:03:39]} 19. Qe2 {[%emt 0:10:19]} Bc5 {[%emt 0:01:27]} 20. Qf3 {[%emt 0:02:26]} Nc4 {[%emt 0:10:51]} 21. O-O-O {[%emt 0:03:25]} Ba3 {[%emt 0:12:35]} 22. bxa3 {[%emt 0:02:26]} Qa5 {[%emt 0:00:30]} 23. Nc2 {[%emt 0:01:56]} Rxd1+ {[%emt 0:07:00]} 24. Rxd1 {[%emt 0:00:08]} Qb5 {[%emt 0:00:25]} 25. Nb4 {[%emt 0:02:52]} Qa4 {[%emt 0:04:29]} 26. Rd5 {[%emt 0:04:50]} Qxa3+ {[%emt 0:01:41]} 27. Kd1 {[%emt 0:00:14]} Nb2+ {[%emt 0:04:54]} 28. Ke2 {[%emt 0:01:11]} Na4 {[%emt 0:00:06]} 29. Kf1 {[%emt 0:07:50]} Qxc3 {[%emt 0:02:40]} 30. Qxf7 {[%emt 0:03:49]} Rh8 {[%emt 0:00:11]} 31. Qd7+ {[%emt 0:00:56]} Kb8 {[%emt 0:00:07]} 32. Nxa6+ {[%emt 0:00:07]} Ka8 {[%emt 0:00:46]} 33. Qd8+ {[%emt 0:01:29]} Qc8 {[%emt 0:00:07]} 34. Nc7+ {[%emt 0:00:36]} Kb8 {[%emt 0:00:02]} 35. Ba7+ {[%emt 0:00:31]} Kxa7 {[%emt 0:00:05]} 36. Ra5+ {[%emt 0:00:03]} Kb6 {[%emt 0:00:10]} 37. Nd5+ {[%emt 0:00:05]} Kc6 {[%emt 0:00:20]} 38. Nb4# {[%emt 0:00:01]} 1-0

[Event "Vojvodina Open 2024-A 2024"]
[Site "Novi Sad"]
[Date "2024.06.28"]
[Round "6.14"]
[White "Arvind Ramnath Iyer"]
[Black "Anakok, Deniz"]
[Result "1/2-1/2"]
[ECO "B45"]
[WhiteElo "1872"]
[BlackElo "1819"]
[Annotator "NA RC"]
[PlyCount "86"]
[EventDate "2024.06.03"]
[EventType "swiss"]
[EventCountry "SRB"]
[SourceTitle "playchess.com"]
[Source "ChessBase"]
[SourceQuality "1"]
[TimeControl "40/5400+30:900+30"]

1. e4 {[%emt 0:00:05]} c5 {[%emt 0:00:06]} 2. Nf3 {[%emt 0:00:04]} e6 {[%emt 0:00:07]} 3. d4 {[%emt 0:00:04]} cxd4 {[%emt 0:00:04]} 4. Nxd4 {[%emt 0:00:04]} Nf6 {[%emt 0:00:07]} 5. Nc3 {[%emt 0:00:03]} Nc6 {[%emt 0:00:05]} 6. Ndb5 {[%emt 0:00:03]} Bb4 {[%emt 0:00:08]} 7. Bf4 {[%emt 0:00:15]} O-O {[%emt 0:03:50]} 8. Bd6 {[%emt 0:03:06]} Bxd6 {[%emt 0:03:51]} 9. Nxd6 {[%emt 0:00:15]} a6 {[%emt 0:02:26]} 10. Be2 {[%emt 0:01:15]} b5 {[%emt 0:00:58]} 11. a3 {[%emt 0:00:32]} Qb6 {[%emt 0:06:50]} 12. O-O {[%emt 0:02:03]} Nd4 {[%emt 0:04:03]} 13. e5 {[%emt 0:00:33]} Ne8 {[%emt 0:00:33]} 14. Nce4 {[%emt 0:00:25]} Nxd6 {[%emt 0:06:56]} 15. Nxd6 {[%emt 0:00:55]} f6 {[%emt 0:03:49]} 16. Bd3 {[%emt 0:02:27]} fxe5 {[%emt 0:05:42]} 17. Qh5 {[%emt 0:00:27]} Nf5 {[%emt 0:00:33]} 18. Nxc8 {[%emt 0:06:06]} Raxc8 {[%emt 0:00:24]} 19. g4 {[%emt 0:00:30]} Nh6 {[%emt 0:03:05]} 20. Qxe5 {[%emt 0:05:28]} Nxg4 {[%emt 0:01:01]} 21. Qe4 {[%emt 0:01:10]} Nf6 {[%emt 0:00:52]} 22. Qh4 {[%emt 0:00:57]} Rc5 {[%emt 0:00:50]} 23. Kh1 {[%emt 0:02:26]} Qc6+ {[%emt 0:03:35]} 24. f3 {[%emt 0:00:48]} Rh5 {[%emt 0:00:59]} 25. Qg3 {[%emt 0:00:06]} h6 {[%emt 0:02:39]} 26. Rad1 {[%emt 0:07:28]} Rg5 {[%emt 0:06:48]} 27. Qf4 {[%emt 0:00:02]} e5 {[%emt 0:04:19]} 28. Qe3 {[%emt 0:03:17]} Ng4 {[%emt 0:23:19]} 29. Qe2 {[%emt 0:00:08]} Nxh2 {[%emt 0:00:12]} 30. Kxh2 {[%emt 0:01:55]} Rf4 {[%emt 0:00:11]} 31. Qe1 {[%emt 0:02:13]} Qe6 {[%emt 0:01:13]} 32. Be4 {[%emt 0:01:19]} Qf6 {[%emt 0:05:30]} 33. Rg1 {[%emt 0:01:05]} Rh5+ {[%emt 0:04:59]} 34. Kg2 {[%emt 0:00:03]} Rfh4 {[%emt 0:00:15]} 35. Qe3 {[%emt 0:02:12]} Rh2+ {[%emt 0:02:04]} 36. Kf1 {[%emt 0:00:06]} Qh4 {[%emt 0:00:28]} 37. Rd2 {[%emt 0:01:19]} Qh3+ {[%emt 0:01:18]} 38. Ke1 {[%emt 0:00:14]} Rh1 {[%emt 0:00:08]} 39. Rxh1 {[%emt 0:01:24]} Qxh1+ {[%emt 0:00:17]} 40. Ke2 {[%emt 0:00:00]} Rh2+ {[%emt 0:00:00]} 41. Kd3 {[%emt 0:00:07]} Qf1+ {[%emt 0:00:22]} 42. Re2 {[%emt 0:00:44]} Qd1+ {[%emt 0:01:05]} 43. Qd2 {[%emt 0:00:21]} Qf1 {[%emt 0:00:10]} 1/2-1/2

[Event "Vojvodina Open 2024-A 2024"]
[Site "Novi Sad"]
[Date "2024.06.28"]
[Round "6.15"]
[White "Popchev, Milko"]
[Black "Mijic, Sara"]
[Result "1-0"]
[ECO "C44"]
[WhiteElo "2159"]
[BlackElo "1920"]
[Annotator "RC"]
[PlyCount "99"]
[EventDate "2024.06.03"]
[EventType "swiss"]
[EventCountry "SRB"]
[SourceTitle "playchess.com"]
[Source "ChessBase"]
[SourceQuality "1"]
[TimeControl "40/5400+30:900+30"]

1. e4 {[%emt 0:07:59]} e5 {[%emt 0:00:20]} 2. Nf3 {[%emt 0:00:09]} Nc6 {[%emt 0:00:47]} 3. d3 {[%emt 0:00:11]} Nf6 {[%emt 0:00:30]} 4. Be2 {[%emt 0:00:09]} d5 {[%emt 0:01:45]} 5. exd5 {[%emt 0:01:00]} Nxd5 {[%emt 0:00:11]} 6. O-O {[%emt 0:00:10]} Be7 {[%emt 0:07:08]} 7. Re1 {[%emt 0:00:39]} O-O {[%emt 0:02:26]} 8. Bf1 {[%emt 0:00:07]} Bf6 {[%emt 0:02:59]} 9. Nbd2 {[%emt 0:00:47]} Bg4 {[%emt 0:04:52]} 10. h3 {[%emt 0:00:52]} Bh5 {[%emt 0:03:51]} 11. c3 {[%emt 0:01:06]} Bg6 {[%emt 0:02:21]} 12. Ne4 {[%emt 0:01:26]} Be7 {[%emt 0:01:13]} 13. Ng3 {[%emt 0:00:23]} Bd6 {[%emt 0:21:26]} 14. Qb3 {[%emt 0:00:42]} Nb6 {[%emt 0:02:13]} 15. a4 {[%emt 0:00:27]} Rb8 {[%emt 0:06:24]} 16. a5 {[%emt 0:02:26]} Nd7 {[%emt 0:00:13]} 17. Qc4 {[%emt 0:00:30]} a6 {[%emt 0:03:44]} 18. Nh4 {[%emt 0:01:55]} Kh8 {[%emt 0:06:47]} 19. Nxg6+ {[%emt 0:01:45]} fxg6 {[%emt 0:00:06]} 20. Ne4 {[%emt 0:00:36]} Be7 {[%emt 0:05:25]} 21. Be3 {[%emt 0:00:56]} Nf6 {[%emt 0:01:35]} 22. Ng5 {[%emt 0:02:39]} Qd5 {[%emt 0:03:40]} 23. Ne6 {[%emt 0:00:22]} Rfc8 {[%emt 0:04:56]} 24. b4 {[%emt 0:01:02]} Nd8 {[%emt 0:02:49]} 25. Nc5 {[%emt 0:02:52]} Nf7 {[%emt 0:04:39]} 26. Rac1 {[%emt 0:05:12]} Rd8 {[%emt 0:02:35]} 27. d4 {[%emt 0:02:38]} Bd6 {[%emt 0:03:26]} 28. Qe2 {[%emt 0:02:46]} Qc6 {[%emt 0:02:11]} 29. g3 {[%emt 0:04:24]} Qe8 {[%emt 0:01:37]} 30. Bg2 {[%emt 0:00:27]} c6 {[%emt 0:00:28]} 31. Qc4 {[%emt 0:01:09]} Nd5 {[%emt 0:01:45]} 32. Bd2 {[%emt 0:00:38]} Bxc5 {[%emt 0:00:42]} 33. bxc5 {[%emt 0:00:22]} Qd7 {[%emt 0:00:53]} 34. dxe5 {[%emt 0:00:34]} Re8 {[%emt 0:00:23]} 35. f4 {[%emt 0:02:36]} Qe6 {[%emt 0:00:06]} 36. Qe4 {[%emt 0:00:37]} Qe7 {[%emt 0:00:48]} 37. Be3 {[%emt 0:01:15]} Nh6 {[%emt 0:00:37]} 38. Bf2 {[%emt 0:00:30]} Rbd8 {[%emt 0:00:29]} 39. Re2 {[%emt 0:02:04]} Nc7 {[%emt 0:00:36]} 40. Ree1 {[%emt 0:00:00]} Nd5 {[%emt 0:00:00]} 41. Qb1 {[%emt 0:05:52]} Nf5 {[%emt 0:01:07]} 42. c4 {[%emt 0:00:30]} Nc7 {[%emt 0:02:24]} 43. Qxb7 {[%emt 0:00:45]} Rd2 {[%emt 0:00:04]} 44. Qxc6 {[%emt 0:01:50]} Ne6 {[%emt 0:00:09]} 45. Rcd1 {[%emt 0:01:35]} Ned4 {[%emt 0:00:56]} 46. Bxd4 {[%emt 0:01:11]} Nxd4 {[%emt 0:00:02]} 47. Qd6 {[%emt 0:03:36]} Ne2+ {[%emt 0:00:23]} 48. Rxe2 {[%emt 0:00:10]} Rxd6 {[%emt 0:00:02]} 49. cxd6 {[%emt 0:00:18]} Qa7+ {[%emt 0:00:06]} 50. Kh2 {[%emt 0:00:14]} 1-0

[Event "Vojvodina Open 2024-A 2024"]
[Site "Novi Sad"]
[Date "2024.06.28"]
[Round "6.16"]
[White "Rindhiya V"]
[Black "Prieb, Robert"]
[Result "1/2-1/2"]
[ECO "C63"]
[WhiteElo "1965"]
[BlackElo "2137"]
[Annotator "RC"]
[PlyCount "34"]
[EventDate "2024.06.03"]
[EventType "swiss"]
[EventCountry "SRB"]
[SourceTitle "playchess.com"]
[Source "ChessBase"]
[SourceQuality "1"]
[TimeControl "40/5400+30:900+30"]

1. e4 {[%emt 0:00:12]} e5 {[%emt 0:00:09]} 2. Nf3 {[%emt 0:00:09]} Nc6 {[%emt 0:00:10]} 3. Bb5 {[%emt 0:00:19]} f5 {[%emt 0:00:10]} 4. Nc3 {[%emt 0:00:13]} fxe4 {[%emt 0:00:12]} 5. Nxe4 {[%emt 0:00:05]} d5 {[%emt 0:00:14]} 6. Nxe5 {[%emt 0:01:31]} dxe4 {[%emt 0:00:14]} 7. Nxc6 {[%emt 0:00:38]} Qg5 {[%emt 0:00:16]} 8. Qe2 {[%emt 0:08:17]} Nf6 {[%emt 0:00:16]} 9. f4 {[%emt 0:07:02]} Qxf4 {[%emt 0:00:22]} 10. Nxa7+ {[%emt 0:00:25]} Bd7 {[%emt 0:00:16]} 11. Bxd7+ {[%emt 0:00:45]} Kxd7 {[%emt 0:00:10]} 12. Qb5+ {[%emt 0:20:18]} Ke6 {[%emt 0:00:16]} 13. Qxb7 {[%emt 0:01:35]} Bd6 {[%emt 0:00:20]} 14. Qb3+ {[%emt 0:12:36]} Kd7 {[%emt 0:00:15]} 15. Qa4+ {[%emt 0:10:40]} Ke6 {[%emt 0:04:33]} 16. Qb3+ {[%emt 0:00:17]} Kd7 {[%emt 0:00:08]} 17. Qa4+ {[%emt 0:12:30]} Ke6 {[%emt 1:30:59]} 1/2-1/2